[Event "Italian-ch Teams-B 2022"]
[Site "Montesilvano"]
[Date "2022.04.22"]
[Round "6.1"]
[White "Lazic, Miroljub"]
[Black "Dardha, Daniel"]
[Result "0-1"]
[ECO "A07"]
[WhiteElo "2322"]
[BlackElo "2552"]
[Annotator "TA"]
[PlyCount "54"]
[EventDate "2022.04.19"]
[EventType "team-tourn"]
[EventCountry "ITA"]
[SourceTitle "playchess.com"]
[Source "ChessBase"]
[SourceQuality "1"]
[TimeControl "40/5400+30:1800+30"]

{[%evp 15,54,0,-10,-17,-1,-22,-21,-23,-15,-64,-61,-61,-62,-68,-53,-58,-55,-72,-76,-80,-72,-86,-31,-31,-31,-33,-30,-45,-34,-52,-17,-17,17,-106,-97,-83,-77,-425,-406,-455,-447]} 1. Nf3 {[%emt 0:00:10]} d5 {[%emt 0:06:18]} 2. g3 {[%emt 0:00:14]} g6 {[%emt 0:00:13]} 3. Bg2 {[%emt 0:00:06]} Bg7 {[%emt 0:00:04]} 4. O-O {[%emt 0:00:12]} e5 {[%emt 0:00:06]} 5. d3 {[%emt 0:00:04]} Nc6 {[%emt 0:00:18]} 6. c3 {[%emt 0:00:11]} Nge7 {[%emt 0:02:00]} 7. e4 {[%emt 0:00:14]} O-O {[%emt 0:00:29]} 8. Nbd2 {[%emt 0:04:43] 8.b4 is more fashionable.} a5 {[%emt 0:02:36][%cal Ba7a5,Ba5a4][%mdl 32]} 9. Re1 {[%emt 0:03:29] A07: Réti Opening: New York and Capablanca Systems.} a4 $5 {[%emt 0:02:01][%mdl 4] A promising side line.} 10. Rb1 {[%emt 0:00:37] [#]} d4 $146 {[%emt 0:02:38]} ({Predecessor:} 10... h6 11. b4 axb3 12. axb3 d4 13. Qc2 dxc3 14. Qxc3 b5 15. Bb2 Be6 16. Qc5 Qxd3 {0-1 (72) Teterev,V (2507)-Stupak,K (2412) Minsk 2008}) 11. Qc2 {[%emt 0:07:55] The position is equal.} Be6 {[%emt 0:04:23]} 12. b3 {[%emt 0:02:54]} (12. a3 $11 {was preferrable.}) 12... dxc3 $15 {[%emt 0:02:28]} 13. Qxc3 {[%emt 0:02:53]} axb3 {[%emt 0:01:50]} 14. axb3 {[%emt 0:01:58][%cal Ba2b3,Bb3b4,Bb4b5][%mdl 32]} Nd4 {[%emt 0:01:47]} 15. Nxd4 {[%emt 0:00:50]} exd4 {[%emt 0:00:30]} 16. Qc2 {[%emt 0:03:41]} Nc6 {[%emt 0:00:50] Threatens to win with ...Nb4.} 17. b4 {[%emt 0:12:24]} Ra2 {[%emt 0:00:46]} 18. Qd1 {[%emt 0:00:18] [#]} Ne5 {[%emt 0:04:47] &Nero is more active.} (18... Qe7 $1 $17 19. b5 Nb4) 19. Nf3 {[%emt 0:12:56]} Nxf3+ {[%emt 0:01:57]} 20. Bxf3 {[%emt 0:02:59]} Qd7 {[%emt 0:02:25]} 21. b5 {[%emt 0:05:07]} Rfa8 $36 {[%emt 0:02:40][%cal Bf8a8,Ba8a5,Ba5a1][%mdl 2080] Black has some pressure.} 22. Re2 {[%emt 0:01:21]} R8a5 {[%emt 0:05:20]} 23. Rxa2 {[%emt 0:07:25]} Bxa2 {[%emt 0:00:33] [#]} 24. Rb2 {[%emt 0:00:14]} (24. Qd2 $1 $11 {remains equal.} Ra4 (24... Bxb1 25. Qxa5) 25. Bd1 Bxb1 26. Bxa4) 24... Be6 $17 {[%emt 0:00:24]} 25. b6 {[%emt 0:04:59]} cxb6 {[%emt 0:05:20] ...Ra1 is the strong threat.} 26. Rxb6 $2 {[%emt 0:00:14][%mdl 8192]} (26. Bf4 $17 {is tougher.}) 26... Ra1 $19 {[%emt 0:00:31]} 27. Qc2 {[%emt 0:01:12] Against Qc7} Qc8 {[%emt 0:00:58] Weighted Error Value: White=0.58/Black=0.08 (flawless)} 0-1

[Event "Italian-ch Teams-B 2022"]
[Site "Montesilvano"]
[Date "2022.04.22"]
[Round "6.2"]
[White "Quinn, Mark"]
[Black "Ortega, Lexy"]
[Result "1/2-1/2"]
[ECO "A36"]
[WhiteElo "2365"]
[BlackElo "2429"]
[Annotator "TA"]
[PlyCount "34"]
[EventDate "2022.04.19"]
[EventType "team-tourn"]
[EventCountry "ITA"]
[SourceTitle "playchess.com"]
[Source "ChessBase"]
[SourceQuality "1"]
[TimeControl "40/5400+30:1800+30"]

{[%evp 17,34,4,16,21,63,33,29,32,166,164,170,27,8,22,22,20,36,31,24]} 1. c4 {[%emt 0:01:13]} c5 {[%emt 0:02:09]} 2. Nc3 {[%emt 0:00:57]} Nc6 {[%emt 0:00:38]} 3. g3 {[%emt 0:01:23]} g6 {[%emt 0:00:06]} 4. Bg2 {[%emt 0:00:24]} Bg7 {[%emt 0:00:01]} 5. e3 {[%emt 0:03:02]} e5 {[%emt 0:02:19]} 6. Nge2 {[%emt 0:01:11]} Nge7 {[%emt 0:00:07]} 7. O-O {[%emt 0:02:44]} O-O {[%emt 0:03:22]} 8. a3 {[%emt 0:10:15]} d6 {[%emt 0:05:09]} 9. Rb1 {[%emt 0:12:28]} Be6 {[%emt 0:02:00]} 10. Nd5 {[%emt 0:00:27] A36: Symmetrical English vs ...g6: 4 Bg2 Bg7.} Na5 {[%emt 0:28:51] [#]} 11. Nxe7+ $146 {[%emt 0:01:42]} ({Predecessor:} 11. d3 Bxd5 12. cxd5 b5 13. b4 cxb4 14. axb4 Nb7 15. Bb2 a5 16. bxa5 b4 17. d4 f6 {1-0 (29) Malyuga,V (2235)-Monisov,A Belorechensk 2007}) 11... Qxe7 {[%emt 0:00:07]} 12. d3 {[%emt 0:17:18] White has an edge.} e4 {[%emt 0:17:59]} (12... Qd7 $14) 13. Bxe4 $18 {[%emt 0:19:48]} Bh3 {[%emt 0:15:07] [#]} 14. Bg2 {[%emt 0:02:04]} ({Only move:} 14. Re1 $1 $18) 14... Bxg2 $11 {[%emt 0:00:11]} 15. Kxg2 {[%emt 0:00:07]} Nxc4 {[%emt 0:00:25][%cal Ob7b5]} 16. Nf4 {[%emt 0:09:53]} Nb6 {[%emt 0:08:08] Against Nd5} 17. Qf3 {[%emt 0:01:22]} Qd7 {[%emt 0:00:02] Weighted Error Value: White=0.20 (precise) /Black=0.38} 1/2-1/2

[Event "Italian-ch Teams-B 2022"]
[Site "Montesilvano"]
[Date "2022.04.22"]
[Round "6.2"]
[White "Formento, Paolo"]
[Black "Boraso, Alessio"]
[Result "1/2-1/2"]
[ECO "E05"]
[WhiteElo "2336"]
[BlackElo "2286"]
[Annotator "TA"]
[PlyCount "94"]
[EventDate "2022.04.19"]
[EventType "team-tourn"]
[EventCountry "ITA"]
[SourceTitle "playchess.com"]
[Source "ChessBase"]
[SourceQuality "1"]
[TimeControl "40/5400+30:1800+30"]

{[%evp 24,94,22,20,29,16,18,10,17,11,8,18,8,9,4,0,0,0,0,0,0,0,0,0,0,0,0,0,23,24,26,17,24,33,24,17,35,29,29,29,71,60,63,38,52,47,47,49,45,46,52,23,33,39,39,0,11,0,54,54,54,54,54,54,87,87,87,87,87,14,14,8,62]} 1. d4 {[%emt 0:00:03]} Nf6 {[%emt 0:01:29]} 2. c4 {[%emt 0:00:17]} e6 {[%emt 0:00:35]} 3. Nf3 {[%emt 0:03:39]} d5 {[%emt 0:00:21]} 4. g3 {[%emt 0:02:03]} Be7 {[%emt 0:00:40]} 5. Bg2 {[%emt 0:00:27]} O-O {[%emt 0:00:10]} 6. O-O {[%emt 0:00:05]} dxc4 {[%emt 0:00:20]} 7. Ne5 {[%emt 0:00:47]} Nc6 {[%emt 0:00:33]} 8. Bxc6 {[%emt 0:00:07]} bxc6 {[%emt 0:00:06]} 9. Nxc6 {[%emt 0:00:02]} Qe8 {[%emt 0:00:09]} 10. Nxe7+ {[%emt 0:00:05]} Qxe7 {[%emt 0:00:08]} 11. Qa4 {[%emt 0:00:20]} e5 {[%emt 0:00:36]} 12. dxe5 {[%emt 0:00:57]} Qxe5 {[%emt 0:00:08]} 13. Qxc4 {[%emt 0:00:45]} Be6 {[%emt 0:00:53] E05: Open Catalan: 5 Nf3 Be7.} 14. Qd3 {[%emt 0:01:28]} Rad8 {[%emt 0:01:01]} 15. Qe3 {[%emt 0:00:55]} Qh5 {[%emt 0:00:14]} 16. f3 {[%emt 0:00:43] Prevents Ng4.} Bc4 $1 {[%emt 0:01:02] [#] And now ...Rfe8 would win.} 17. Nc3 {[%emt 0:01:16]} Rfe8 {[%emt 0:01:13]} 18. Qg5 {[%emt 0:17:08] Black must now prevent Qxh5.} Qh3 $132 {[%emt 0:01:58][%mdl 2048] Black is not holding back} 19. Qh4 {[%emt 0:20:29]} Qxh4 {[%emt 0:01:03]} 20. gxh4 {[%emt 0:23:32] [#]} Nd5 $146 {[%emt 0:11:08]} ({Predecessor:} 20... Bxe2 21. Rf2 Ba6 22. Bg5 Re6 23. Rd2 Rxd2 24. Bxd2 Nd7 25. Re1 Ne5 26. Re3 Rg6+ {0-1 (94) Janz,F (2327)-Bracker,F (2361) Germany 2014}) 21. Nxd5 {[%emt 0:00:15]} Rxd5 {[%emt 0:00:31]} 22. Re1 {[%emt 0:01:02]} Rxe2 {[%emt 0:05:01]} 23. Rxe2 {[%emt 0:01:02]} Bxe2 $11 {[%emt 0:00:08][%mdl 4096] Endgame KRB-KRB} 24. Kf2 {[%emt 0:00:17]} Bb5 {[%emt 0:07:11]} 25. Be3 {[%emt 0:00:52]} a6 {[%emt 0:12:38]} 26. Rc1 {[%emt 0:05:39]} Rd7 {[%emt 0:13:18]} 27. b3 {[%emt 0:01:02]} Kf8 {[%emt 0:07:08]} 28. a4 {[%emt 0:01:41]} Bd3 {[%emt 0:00:06]} 29. Bf4 {[%emt 0:04:46]} Bf5 {[%emt 0:07:09]} 30. Rc6 {[%emt 0:04:13]} ({Don't play} 30. Rxc7 Rxc7 31. Bxc7 Bc2 $11) 30... Ke8 {[%emt 0:07:42]} 31. Rxa6 {[%emt 0:06:40]} Be6 {[%emt 0:05:56]} 32. Ra8+ {[%emt 0:02:36]} Rd8 {[%emt 0:02:19]} 33. Ra7 {[%emt 0:00:02]} c5 {[%emt 0:04:29]} 34. Be3 {[%emt 0:00:43]} Rb8 {[%emt 0:03:03]} 35. Bxc5 {[%emt 0:00:18] b4 is the strong threat.} Rxb3 {[%emt 0:00:33]} 36. a5 {[%emt 0:00:58]} Bd5 {[%emt 0:00:12]} 37. Be3 {[%emt 0:00:38]} Ra3 {[%emt 0:02:45]} 38. h5 {[%emt 0:00:51]} h6 {[%emt 0:00:41]} 39. Ra6 {[%emt 0:00:42]} Kd7 {[%emt 0:00:45]} 40. h4 {[%emt 0:00:33]} Bc6 {[%emt 0:03:12]} (40... Ra2+ $11 41. Kg3 Ra3 42. Ra7+ Kc6) 41. Ra7+ $14 {[%emt 0:18:30]} Ke6 {[%emt 0:16:53] [#]} 42. Re7+ $1 {[%emt 0:06:40]} Kxe7 {[%emt 0:03:07]} (42... Kf6 43. Bd4+) 43. Bc5+ {[%emt 0:00:01]} Kd7 {[%emt 0:03:07]} 44. Bxa3 {[%emt 0:00:04] Threatens to win with Bf8.} g6 {[%emt 0:00:10]} 45. hxg6 {[%emt 0:02:38]} fxg6 {[%emt 0:00:05]} 46. h5 {[%emt 0:00:49]} (46. Bc1 $16) 46... gxh5 $11 {[%emt 0:00:25]} 47. f4 {[%emt 0:00:16]} Kc8 {[%emt 0:00:31] Weighted Error Value: White=0.08 (flawless) /Black=0.08 (flawless)} (47... Bb5 $11) 1/2-1/2

[Event "Italian-ch Teams-B 2022"]
[Site "Montesilvano"]
[Date "2022.04.22"]
[Round "6.2"]
[White "Podetti, Davide"]
[Black "Bellini, Fabio"]
[Result "1/2-1/2"]
[ECO "C41"]
[WhiteElo "2223"]
[BlackElo "2428"]
[Annotator "TA"]
[PlyCount "70"]
[EventDate "2022.04.19"]
[EventType "team-tourn"]
[EventCountry "ITA"]
[SourceTitle "playchess.com"]
[Source "ChessBase"]
[SourceQuality "1"]
[TimeControl "40/5400+30:1800+30"]

{[%evp 10,70,25,23,30,25,28,27,19,32,59,60,50,56,66,72,67,74,77,67,47,29,50,14,29,15,19,14,18,27,47,19,39,13,51,7,34,0,0,0,17,0,0,0,0,0,0,0,0,0,0,0,0,0,0,0,0,0,0,0,0,0,0]} 1. e4 {[%emt 0:00:05]} d6 {[%emt 0:00:25]} 2. d4 {[%emt 0:00:27]} Nf6 {[%emt 0:00:11]} 3. Nc3 {[%emt 0:00:08]} e5 {[%emt 0:00:14]} 4. Nf3 {[%emt 0:02:00][%cal Bg1f3,Bf3d4,Bd4b5,Bb5a3,Ba3c4][%mdl 32]} Nbd7 {[%emt 0:00:30]} 5. Bc4 {[%emt 0:01:09]} Be7 {[%emt 0:00:21]} 6. O-O {[%emt 0:00:41][%cal Oc4f7] [#] And now Bxf7+! would win.} Nb6 {[%emt 0:01:26] C41: Philidor Defence.} 7. Be2 {[%emt 0:15:20]} exd4 {[%emt 0:00:44]} 8. Nxd4 {[%emt 0:00:26] 8.Qxd4 is vanishing.} O-O {[%emt 0:01:01] White has an edge.} 9. a4 {[%emt 0:07:43][%cal Ba2a4,Ba4a5][%mdl 32]} c5 {[%emt 0:14:56]} 10. Ndb5 {[%emt 0:03:34]} a6 {[%emt 0:10:10]} 11. Na3 {[%emt 0:00:54] [#]} d5 $146 {[%emt 0:07:37]} ({Predecessor:} 11... Bd7 12. a5 Na4 13. Nxa4 Bxa4 14. Nc4 Bc6 15. Nb6 Rb8 16. f3 d5 17. Bf4 dxe4 18. Bxb8 Qxb8 {1-0 (45) Cuijpers,F (2420)-Zagema,W (2360) Netherlands 1998}) 12. e5 $1 {[%emt 0:11:51]} Ne4 {[%emt 0:02:23]} 13. Nxe4 {[%emt 0:04:27]} dxe4 {[%emt 0:00:03]} 14. a5 {[%emt 0:08:24] [#] Qxd8 is the strong threat.} Nd5 {[%emt 0:00:42]} 15. Nc4 {[%emt 0:03:58]} Be6 {[%emt 0:08:47]} 16. Bg4 {[%emt 0:04:02]} (16. c3 $5 {[%cal Rd1c2]}) 16... Qd7 {[%emt 0:09:19]} (16... Nc3 {is interesting.} 17. Qxd8 Raxd8 18. Bxe6 Ne2+) 17. Bxe6 {[%emt 0:00:16]} Qxe6 {[%emt 0:00:03]} 18. Qe2 {[%emt 0:01:15]} f5 $1 {[%emt 0:01:41]} 19. exf6 {[%emt 0:01:06]} Rxf6 {[%emt 0:02:50]} 20. Be3 {[%emt 0:04:53]} Raf8 {[%emt 0:02:26]} 21. Rad1 {[%emt 0:05:19]} Rg6 {[%emt 0:04:29][%cal Oe6h3]} 22. Kh1 {[%emt 0:02:05]} Bg5 {[%emt 0:10:35]} 23. Qd2 {[%emt 0:09:40]} Nxe3 {[%emt 0:05:38] The position is equal.} 24. Nxe3 {[%emt 0:00:16]} h6 {[%emt 0:09:55]} 25. Qd5 {[%emt 0:02:41]} (25. Kg1 {with more complications.} Kh7 26. Qd5 b6 27. axb6 Bxe3 28. Qxe6 Rxe6 29. fxe3 Rxf1+ 30. Kxf1 Rxb6 31. b3) 25... Bxe3 {[%emt 0:00:27]} 26. Qxe6+ {[%emt 0:00:06]} Rxe6 {[%emt 0:00:04]} 27. fxe3 {[%emt 0:00:25]} Rxf1+ {[%emt 0:00:15]} 28. Rxf1 $11 {[%emt 0:00:01][%mdl 4096] Endgame KR-KR} Rd6 {[%emt 0:00:15]} 29. Kg1 {[%emt 0:01:12]} c4 {[%emt 0:00:49]} 30. Rf4 {[%emt 0:02:32]} Rd1+ {[%emt 0:00:40]} 31. Kf2 {[%emt 0:00:43]} Rd2+ {[%emt 0:00:37]} 32. Kg3 {[%emt 0:00:17]} Rxc2 {[%emt 0:00:26]} 33. Rxe4 {[%emt 0:00:02]} Rxb2 {[%emt 0:03:56]} 34. Rxc4 {[%emt 0:00:05]} Rb5 {[%emt 0:00:38]} 35. Rc7 {[%emt 0:00:07]} Rxa5 {[%emt 0:00:30] Weighted Error Value: White=0.08 (flawless) /Black=0.06 (flawless)} 1/2-1/2

[Event "Italian-ch Teams-B 2022"]
[Site "Montesilvano"]
[Date "2022.04.22"]
[Round "6.3"]
[White "Bellia, Fabrizio"]
[Black "Navarro, Stefano"]
[Result "1/2-1/2"]
[ECO "C41"]
[WhiteElo "2428"]
[BlackElo "2247"]
[Annotator "TA"]
[PlyCount "86"]
[EventDate "2022.04.19"]
[EventType "team-tourn"]
[EventCountry "ITA"]
[SourceTitle "playchess.com"]
[Source "ChessBase"]
[SourceQuality "1"]
[TimeControl "40/5400+30:1800+30"]

{[%evp 16,86,43,32,62,0,19,0,10,0,14,0,13,0,7,1,10,0,15,11,9,0,0,0,0,0,0,0,10,10,12,6,17,0,85,53,57,60,47,31,73,29,70,34,54,50,60,0,0,0,0,0,0,0,0,0,0,0,0,-20,-22,-778,-768,-681,-684,-1858,-49,-55,0,-1577,0,-54,0]} 1. e4 {[%emt 0:01:02]} e5 {[%emt 0:00:07]} 2. Nf3 {[%emt 0:00:06]} d6 {[%emt 0:00:18]} 3. d4 {[%emt 0:00:12]} Nd7 {[%emt 0:01:08]} 4. Nc3 {[%emt 0:01:52]} c6 {[%emt 0:01:48]} 5. a4 {[%emt 0:00:16]} Be7 {[%emt 0:00:14]} 6. Bc4 {[%emt 0:00:40]} Ngf6 {[%emt 0:00:06]} 7. O-O {[%emt 0:00:16]} O-O {[%emt 0:00:22]} 8. Re1 {[%emt 0:00:26]} Qc7 {[%emt 0:01:42] Recently 8...h6 got a lot of attention.} 9. h3 {[%emt 0:01:36]} Rb8 {[%emt 0:26:43] C41: Philidor Defence.} 10. a5 {[%emt 0:22:05] White is much more active. The black rooks are badly placed.} (10. Qe2) ({Better is} 10. Bg5 $14) 10... b5 {[%emt 0:07:22]} 11. axb6 {[%emt 0:00:13]} axb6 {[%emt 0:00:04][%cal Ba7b6,Bb6b5][%mdl 32] The position is equal.} 12. Nh4 {[%emt 0:00:19] [#]} Re8 $146 {[%emt 0:12:39]} ({Predecessor:} 12... exd4 13. Qxd4 Ne5 14. Be2 Re8 15. Nf5 Bxf5 16. exf5 d5 17. Bf4 Bd6 18. Bg5 Ned7 {½-½ (50) Krauss,J (2104)-Ziegler,M (2127) Gerolzhofen 2011}) 13. Nf5 {[%emt 0:01:11]} Bf8 {[%emt 0:00:08]} 14. d5 {[%emt 0:03:58]} b5 {[%emt 0:10:57] [#]} 15. dxc6 $1 {[%emt 0:02:45]} Qxc6 {[%emt 0:16:00]} (15... bxc4 16. cxd7) 16. Bd5 {[%emt 0:04:45]} Nxd5 {[%emt 0:00:22]} 17. Nxd5 {[%emt 0:02:36] Strongly threatening Ra3.} Nb6 {[%emt 0:00:50]} 18. Nfe3 {[%emt 0:11:04]} (18. Nb4 {seems wilder.} Qc5 19. Na6 Bxa6 20. Rxa6 d5 21. Qg4) 18... Nxd5 {[%emt 0:04:53]} 19. Nxd5 {[%emt 0:00:16]} Be6 {[%emt 0:01:05]} 20. Nb4 {[%emt 0:02:37]} Qc4 {[%emt 0:04:22]} 21. c3 {[%emt 0:01:48]} f5 {[%emt 0:01:43]} 22. exf5 {[%emt 0:01:24]} Bxf5 {[%emt 0:00:06]} 23. Qf3 {[%emt 0:04:55]} Bg6 {[%emt 0:01:35]} 24. Be3 {[%emt 0:06:54]} e4 {[%emt 0:03:43]} (24... Be4 $11 {keeps the balance.} 25. Qg4 Ra8) 25. Qd1 {[%emt 0:04:57]} Bf7 {[%emt 0:00:53]} 26. Bd4 {[%emt 0:02:50]} d5 {[%emt 0:00:21]} 27. Qg4 {[%emt 0:02:35]} Rb7 {[%emt 0:00:12][%cal Bb8b7,Bb7f7,Bf7f5,Bf5g5][%mdl 32]} 28. Nc2 {[%emt 0:00:57]} Qc6 {[%emt 0:02:00]} 29. Ne3 {[%emt 0:00:32]} Be6 {[%emt 0:00:13]} 30. Qg5 {[%emt 0:02:33]} Rf7 {[%emt 0:00:40]} 31. Ng4 {[%emt 0:08:40]} (31. Ra5 $14) 31... Bxg4 $11 {[%emt 0:00:14]} 32. Qxg4 {[%emt 0:00:14]} Bc5 {[%emt 0:00:47]} 33. Rad1 {[%emt 0:00:43][%cal Ba1d1,Bd1d4,Bd4b4][%mdl 32]} Ref8 {[%emt 0:00:23]} 34. Re2 {[%emt 0:00:13]} Bxd4 {[%emt 0:00:59]} 35. Rxd4 {[%emt 0:00:15]} Rf5 {[%emt 0:00:05]} 36. Qg3 {[%emt 0:01:24]} Qf6 {[%emt 0:00:36]} 37. Rb4 {[%emt 0:05:00]} Rg5 {[%emt 0:00:41]} 38. Qh2 {[%emt 0:01:34][%mdl 8192]} (38. Qe3 $11) 38... Qf3 $1 $19 {[%emt 0:00:42]} 39. Kf1 {[%emt 0:00:24]} Qd3 {[%emt 0:00:20] [#] ( -> ...Qd1+)} 40. Qd6 {[%emt 0:02:59]} Qd1+ {[%emt 0:01:57]} (40... Ra8 $19 {[%cal Ra8a1]} 41. Ra4 bxa4) 41. Re1 $15 {[%emt 0:30:25]} Qd3+ $2 {[%emt 0:25:31][%mdl 8192]} (41... Qc2 $15 42. Qc5 Rgf5) 42. Re2 $19 {[%emt 0:00:00]} Qd1+ {[%emt 0:04:16]} ({Black should play} 42... Ra8 $19 {[%cal Ra8a1]} 43. Ra4 bxa4) 43. Re1 $15 {[%emt 0:00:00] Really sharp!} Qd3+ {[%emt 0:00:50] Weighted Error Value: White=0.47/Black=0.59} (43... Qc2 $15 44. Qc5 Rgf5) 1/2-1/2

[Event "Italian-ch Teams-B 2022"]
[Site "Montesilvano"]
[Date "2022.04.22"]
[Round "6.3"]
[White "D'Amore, Carlo"]
[Black "Bifulco, Michel"]
[Result "0-1"]
[ECO "D02"]
[WhiteElo "2406"]
[BlackElo "2274"]
[Annotator "TA"]
[PlyCount "122"]
[EventDate "2022.04.19"]
[EventType "team-tourn"]
[EventCountry "ITA"]
[SourceTitle "playchess.com"]
[Source "ChessBase"]
[SourceQuality "1"]
[TimeControl "40/5400+30:1800+30"]

{[%evp 11,122,0,7,12,0,-3,-4,-12,14,0,6,-13,16,10,14,27,17,16,22,19,91,0,0,-65,-64,-60,-43,-85,-93,-102,-97,-94,-98,-99,-92,-127,-89,-99,-91,-115,-115,-100,-77,-78,-83,-74,-56,-254,-248,-269,-287,-358,-359,-354,-338,-320,-323,-364,-351,-333,-312,-362,-363,-389,-246,-232,-232,-231,0,-206,-203,-412,-313,-307,-306,-471,-448,-685,-679,-708,-528,-578,-524,-766,-766,-640,-408,-12839,-12839,-12841,-12840,-12845,-12845,-12845,-12846,-12849,-12849,-12850,-12850,-12850,-27998,-27999,-27998,-27995,-27995,-27998,-27998,-27999,-27999,-27998,-27998,-27999,-27999]} 1. Nf3 {[%emt 0:00:04]} d5 {[%emt 0:00:07]} 2. g3 {[%emt 0:00:21]} g6 {[%emt 0:00:07]} 3. Bg2 {[%emt 0:04:07]} Bg7 {[%emt 0:00:09]} 4. d4 {[%emt 0:00:08]} c6 {[%emt 0:00:05]} 5. O-O {[%emt 0:00:36]} Nf6 {[%emt 0:00:07]} 6. Be3 {[%emt 0:01:03]} O-O {[%emt 0:00:19]} 7. Qc1 {[%emt 0:00:05] D02: 1 d4 d5 2 Nf3 sidelines, including 2...Nf6 3 g3 and 2...Nf6 3 Bf4.} Re8 {[%emt 0:05:10] The main line 7...Re8 scores better than 7...Bf5.} 8. Bh6 {[%emt 0:00:26]} Bxh6 {[%emt 0:03:18]} 9. Qxh6 {[%emt 0:00:07][%cal Oc2c4] The position is equal.} Nbd7 {[%emt 0:00:13]} 10. Qf4 {[%emt 0:03:55] [#] Against e5} Nh5 $146 {[%emt 0:05:23]} ({Predecessor:} 10... Qb6 11. b3 c5 12. e3 Nf8 13. Nbd2 Bf5 14. c4 Ne6 15. Qh4 Bd3 16. Rfc1 cxd4 17. cxd5 Nxd5 18. Nxd4 Nxd4 19. Qxd4 Qxd4 20. exd4 Rad8 21. Nc4 Nf6 {½-½ (21) Staniszewski,P (2416)-Talla,V (2407) Ustron 2008}) 11. Qd2 {[%emt 0:01:54]} e5 {[%emt 0:01:37]} 12. dxe5 {[%emt 0:00:09]} Qb6 {[%emt 0:22:54]} ({Don't play} 12... Nxe5 13. Nxe5 Rxe5 14. e4 $14) 13. c4 {[%emt 0:03:32]} dxc4 {[%emt 0:02:54]} 14. Na3 {[%emt 0:03:33]} Qc5 {[%emt 0:02:47]} 15. Rac1 {[%emt 0:01:03]} b5 {[%emt 0:07:18]} (15... Nxe5 $11 {keeps the balance.} 16. Nxe5 Qxe5) 16. b4 {[%emt 0:01:17]} (16. Nd4 $1 $16 Nxe5 17. Ndxb5 $1 (17. Naxb5 Rb8 $11)) 16... Qb6 $11 {[%emt 0:05:23]} 17. Nd4 {[%emt 0:06:07]} (17. Rfd1 $11) 17... Bb7 $1 $15 {[%emt 0:05:53]} 18. e6 {[%emt 0:06:48]} fxe6 {[%emt 0:01:16]} 19. Ndxb5 {[%emt 0:03:16]} cxb5 {[%emt 0:00:17]} 20. Qxd7 {[%emt 0:00:05]} Bxg2 {[%emt 0:00:25] The board is on fire.} 21. Kxg2 {[%emt 0:00:03]} a6 {[%emt 0:00:52] aiming for ...Rad8.} 22. Qd2 {[%emt 0:00:15]} Rad8 {[%emt 0:03:11]} 23. Qh6 {[%emt 0:00:13]} Qc6+ {[%emt 0:05:20]} 24. Kg1 {[%emt 0:00:06]} Qe4 {[%emt 0:00:08]} 25. Nb1 {[%emt 0:04:23]} Qxe2 {[%emt 0:03:14] 0x0.0019b955caafdp-1022s more active pieces. The white rooks are badly placed.} 26. a4 {[%emt 0:00:07]} Qb2 {[%emt 0:01:37]} 27. axb5 {[%emt 0:00:13]} axb5 {[%emt 0:00:06][%cal Ba6b5,Bb5b4][%mdl 32]} 28. Nc3 {[%emt 0:00:10]} Qxb4 {[%emt 0:01:37]} 29. Qg5 $2 {[%emt 0:00:06]} (29. Qe3 $1 $15) 29... e5 $19 {[%emt 0:04:04]} 30. Rfe1 {[%emt 0:02:33]} Qc5 {[%emt 0:01:29]} 31. Rcd1 {[%emt 0:00:38]} Rxd1 {[%emt 0:03:18]} 32. Rxd1 {[%emt 0:00:08]} b4 {[%emt 0:01:13]} 33. Ne4 {[%emt 0:00:19]} Qe7 {[%emt 0:01:09]} 34. Qd2 {[%emt 0:01:44]} c3 {[%emt 0:01:34]} 35. Qd5+ {[%emt 0:00:22]} Kh8 {[%emt 0:08:10] ...Nf6 is the strong threat.} 36. Qc4 {[%emt 0:04:15]} Ng7 {[%emt 0:04:36]} 37. Qc6 {[%emt 0:02:04]} Rd8 {[%emt 0:00:53] Inhibits Rd7.} 38. Rxd8+ {[%emt 0:08:01]} Qxd8 {[%emt 0:00:01]} 39. Qc5 {[%emt 0:00:07][%cal Oe4g5]} h6 {[%emt 0:01:04] Prevents Ng5.} ({Inferior is} 39... Qd1+ 40. Kg2 Qb3 41. Nf6 $11) ({Black should play} 39... Qb8 $19 {And now ...Nf5 would win.} 40. Qc6 b3 41. Nxc3 b2) 40. Kg2 $2 {[%emt 0:00:13]} (40. Qxb4 $11 {and White is okay.} c2 41. Qc5) 40... Qb8 {[%emt 0:00:39]} 41. g4 $2 {[%emt 0:31:05]} (41. h4 {was necessary.}) 41... b3 {[%emt 0:25:29] Hoping for ...c2.} 42. Nxc3 {[%emt 0:00:00]} b2 {[%emt 0:00:01]} 43. Nb1 {[%emt 0:00:00]} (43. h3 $142) 43... Qb7+ {[%emt 0:02:45]} 44. f3 {[%emt 0:00:00]} (44. Kg3 $142 Qh1 45. Nd2) 44... e4 {[%emt 0:00:01]} 45. Qc3 {[%emt 0:00:00]} Kh7 {[%emt 0:02:08]} 46. Kf2 {[%emt 0:00:00]} exf3 {[%emt 0:02:01] White must now prevent ...Qb8.} 47. Qxf3 {[%emt 0:00:00]} Qxf3+ {[%emt 0:00:56]} 48. Kxf3 {[%emt 0:00:00][%mdl 4096] Endgame KN-KN} h5 {[%emt 0:00:17]} 49. gxh5 {[%emt 0:00:00]} (49. Kf4 $142 Ne6+ 50. Ke5) 49... gxh5 {[%emt 0:00:01]} 50. Ke3 {[%emt 0:00:00]} Kg6 {[%emt 0:00:17]} 51. Kd3 {[%emt 0:00:00]} Kf5 {[%emt 0:01:07]} 52. Kc2 {[%emt 0:00:00] [#]} Kg4 $1 {[%emt 0:00:09]} 53. Nd2 {[%emt 0:00:00] [#]} Kh3 $1 {[%emt 0:00:01]} 54. Nf3 {[%emt 0:00:00]} Kg2 {[%emt 0:00:05]} 55. Ng5 {[%emt 0:00:00]} Kxh2 {[%emt 0:00:06]} 56. Kxb2 {[%emt 0:00:00] Black mates.} Kg3 {[%emt 0:00:37]} 57. Kc2 {[%emt 0:00:00]} h4 {[%emt 0:00:38][%cal Bh5h4,Bh4h3][%mdl 32]} 58. Kd2 {[%emt 0:00:00]} Ne6 {[%emt 0:00:44]} 59. Ne4+ {[%emt 0:00:00]} Kf3 {[%emt 0:00:35]} 60. Kd3 {[%emt 0:00:00]} h3 {[%emt 0:00:32]} 61. Nd2+ {[%emt 0:00:00]} Kg2 {[%emt 0:00:00] Weighted Error Value: White=0.45/Black=0.20 (precise)} 0-1